lending/lending_fUSD_20251218
["ID","MTS","AMOUNT","RATE_DAILY","PERIOD"]
[399024788,1766075077855,-250.0,0.00043999,120]
[399024789,1766075077928,-500.0,0.00043999,120]
[399024790,1766075077998,-500.0,0.00043999,120]
[399024791,1766075078073,-500.0,0.00043999,120]
[399024792,1766075078149,-500.0,0.00043999,120]
[399024793,1766075078228,-250.0,0.00043999,120]
[399024794,1766075078303,-500.0,0.00043999,120]
[399024795,1766075078382,-500.0,0.00043999,120]
[399024796,1766075078455,-250.0,0.00043999,120]
[399024797,1766075078529,-500.0,0.00043999,120]
[399024798,1766075078604,-500.0,0.00043999,120]
[399024799,1766075078680,-500.0,0.00043999,120]
[399024800,1766075078752,-250.0,0.00043999,120]
[399024801,1766075078826,-500.0,0.00043999,120]
[399024802,1766075078902,-500.0,0.00043999,120]
[399024803,1766075078979,-500.0,0.00043999,120]
[399024804,1766075079057,-250.0,0.00043999,120]
[399024805,1766075079136,-500.0,0.00043999,120]
[399024806,1766075079213,-500.0,0.00043999,120]
[399024807,1766075079288,-500.0,0.00043999,120]
[399024808,1766075079362,-250.0,0.00043999,120]
[399024809,1766075079824,-250.0,0.00043999,120]
[399024810,1766075079897,-179.47336528,0.00043999,120]
[399024811,1766075079971,-151.0,0.00043999,120]
[399024812,1766075080048,-151.0,0.00043999,120]
[399024813,1766075080134,-151.0,0.00043999,120]
[399024814,1766075080208,-250.0,0.00043999,120]
[399024815,1766075080287,-151.0,0.00043999,120]
[399024816,1766075080362,-250.0,0.00043999,120]
[399024817,1766075080438,-151.0,0.00043999,120]
[399024818,1766075080511,-250.0,0.00043999,120]
[399024819,1766075080598,-151.0,0.00043999,120]
[399024820,1766075080675,-250.0,0.00043999,120]
[399024821,1766075080751,-151.0,0.00043999,120]
[399024822,1766075080835,-250.0,0.00043999,120]
[399024823,1766075080911,-151.0,0.00043999,120]
[399024824,1766075080982,-151.0,0.00043999,120]
[399024825,1766075081058,-250.0,0.00043999,120]
[399024826,1766075081134,-151.0,0.00043999,120]
[399024827,1766075081210,-151.0,0.00043999,120]
[399024828,1766075081285,-250.0,0.00043999,120]
[399024829,1766075081360,-151.0,0.00043999,120]
[399024830,1766075081435,-250.0,0.00043999,120]
[399024831,1766075081512,-155.27119692,0.00043999,120]
[399024832,1766075081586,-250.0,0.00043999,120]
[399024833,1766075081662,-10684.5607992,0.00044,120]
[399024834,1766075081739,-1098.0,0.00044,30]
[399024835,1766075081810,-73898.58816868,0.00044,120]
[399024836,1766075081881,-100000.0,0.00044,120]
[399024837,1766075081957,-100000.0,0.00044,120]
[399024838,1766075082031,-100000.0,0.00044,120]
[399024839,1766075082104,-100000.0,0.00044,120]
[399024840,1766075082178,-100000.0,0.00044,120]
[399024841,1766075082253,-100000.0,0.00044,120]
[399024842,1766075082333,-93597.33316529,0.00044,120]
[399024843,1766075082412,-152.0,0.00044,120]
[399024844,1766075082488,-402.151562,0.00044,57]
[399024845,1766075082563,-151.0,0.00044,120]
[399024846,1766075082637,-152.29294885,0.00044,120]
[399024847,1766075082709,-234.0,0.00044,31]
[399024848,1766075082782,-168.0,0.000445,120]
[399024849,1766075082852,-316.39396961,0.000445,120]
[399024850,1766075082922,-152.0,0.000445,120]
[399024851,1766075082994,-500.0,0.00044548,60]
[399024852,1766075083075,-571.59014603,0.00044548,60]
[399024853,1766075083151,-314.0,0.0004455,120]
[399024854,1766075083237,-478.2,0.000447,120]
[399024855,1766075083314,-319340.31418914,0.000449,30]
[399024856,1766075083403,-208.0,0.0004496,30]
[399024857,1766075083494,-50000.0,0.00045,45]
[399024858,1766075083580,-168.0,0.00045,120]
[399024859,1766075083663,-4500.0,0.00045,120]
[399024860,1766075083737,-2008.33874056,0.00045,60]
[399024861,1766075083811,-150.0,0.00045,90]
[399024862,1766075083886,-20106.18243657,0.00045,30]
[399024863,1766075083960,-158.2,0.00045,85]
[399024864,1766075084036,-5582.61526549,0.00045,120]
[399024865,1766075084121,-10000.0,0.00045,120]
[399024866,1766075084205,-1603.28659593,0.00045,120]
[399024867,1766075084284,-7372.0,0.00045,120]
[399024868,1766075084362,-500.0,0.00045,64]
[399024869,1766075084432,-514.0,0.00045,40]
[399024870,1766075084511,-390.77,0.00045,120]
[399024871,1766075084590,-1172.93,0.00045,120]
[399024872,1766075084662,-152.0,0.00045,120]
[399024873,1766075084735,-9069.81,0.00045,120]
[399024874,1766075084812,-725.7347166,0.00045,120]
[399024875,1766075084886,-500.0,0.00045,120]
[399024876,1766075084959,-150.0,0.00045,120]
[399024877,1766075085034,-150.0,0.00045,120]
[399024878,1766075085122,-700.0,0.00045,120]
[399024879,1766075085193,-150.0,0.00045,120]
[399024880,1766075085269,-1920.24,0.00045087,120]
[399024881,1766075085342,-15186.21074625,0.00045093,30]
[399024882,1766075085426,-168.0,0.000455,120]
[399024883,1766075085498,-152.0,0.000456,120]
[399024884,1766075085568,-454.23537478,0.00045644,60]
[399024885,1766075085646,-286.23,0.00045985,120]
[399024886,1766075085718,-168.0,0.00046,120]
[399024887,1766075085794,-200.0,0.00046,120]
[399024888,1766075085864,-229.22492477,0.00046,30]
[399024889,1766075085938,-10000.0,0.00046,120]
[399024890,1766075086010,-354.88360028,0.00046,90]
[399024891,1766075086083,-537.12167934,0.00046,120]
[399024892,1766075086157,-152.0,0.000461,120]
[399024893,1766075086234,-1920.24,0.00046183,120]
[399024894,1766075086320,-1098.0,0.000462,30]
[399024895,1766075086397,-168.0,0.000465,120]
[399024896,1766075086474,-152.0,0.000466,120]
[399024897,1766075086546,-3033.97418642,0.00046667,120]
[399024898,1766075086622,-153.27,0.000467,30]
[399024899,1766075086698,-296008.59465594,0.000468,120]
[399024900,1766075086770,-3000.0,0.000469,120]
[399024901,1766075086840,-645.67418725,0.000469,120]
[399024902,1766075086912,-208.0,0.0004698,30]
[399024903,1766075086980,-168.0,0.00047,120]
[399024904,1766075087052,-549.0,0.00047,60]
[399024905,1766075087477,-7372.0,0.00047,120]
[399024906,1766075087558,-152.0,0.000471,120]
[399024907,1766075087636,-9099.07595556,0.00047203,120]
[399024908,1766075087714,-1920.24,0.00047279,120]
[399024909,1766075087791,-168.0,0.000474,120]
[399024910,1766075087865,-221.12867086,0.000475,120]
[399024911,1766075087937,-152.0,0.000477,120]
[399024912,1766075088011,-168.0,0.000479,120]
[399024913,1766075088085,-2000.0,0.00048,120]
[399024914,1766075088160,-200.0,0.00048,120]
[399024915,1766075088236,-326.40904338,0.00048,120]
[399024916,1766075088307,-2000.0,0.00048,60]
[399024917,1766075088379,-101787.3212597,0.00048,120]
[399024918,1766075088454,-292.67229849,0.00048,120]
[399024919,1766075088525,-1832.58672749,0.00048,120]
[399024920,1766075088596,-537.12167934,0.00048,120]
[399024921,1766075088666,-910.74823826,0.000481,120]
[399024922,1766075088736,-152.0,0.000482,120]
[399024923,1766075088808,-427.79830885,0.0004825,120]
[399024924,1766075088879,-10076.95507337,0.0004826,120]
[399024925,1766075088951,-1920.24,0.00048375,120]
[399024926,1766075089023,-168.0,0.000484,120]
[399024927,1766075089095,-217.41,0.000484,120]
[399024928,1766075089167,-3000.0,0.000485,120]
[399024929,1766075089242,-500.0,0.00048685,30]
[399024930,1766075089317,-152.0,0.000487,120]
[399024931,1766075089391,-241.87365573,0.000488,30]
[399024932,1766075089467,-6772.87203666,0.00048875,60]
[399024933,1766075089541,-81755.0,0.000489,60]
[399024934,1766075089614,-168.0,0.000489,120]
[399024935,1766075089687,-2724.36742135,0.000489,120]
[399024936,1766075089757,-500.0,0.00048959,30]
[399024937,1766075089826,-208.0,0.0004899,30]
[399024938,1766075089895,-3000.0,0.00049,120]
[399024939,1766075089967,-192.36440257,0.00049,30]
[399024940,1766075090040,-7372.0,0.00049,120]
[399024941,1766075090115,-234.0,0.00049,53]
[399024942,1766075090194,-152.0,0.000492,120]
[399024943,1766075090276,-500.0,0.00049233,30]
[399024944,1766075090350,-10000.0,0.00049315,120]
[399024945,1766075090424,-1796.5,0.00049315,120]
[399024946,1766075090497,-800.0,0.00049315,33]
[399024947,1766075090568,-168.0,0.000494,120]
[399024948,1766075090639,-1920.24,0.0004947,120]
[399024949,1766075090708,-500.0,0.000495,120]
[399024950,1766075090777,-3000.0,0.000495,120]
[399024951,1766075090844,-500.0,0.00049507,60]
[399024952,1766075090915,-500.0,0.00049781,60]
[399024953,1766075090982,-219.80484174,0.000498,30]
[399024954,1766075091052,-3000.0,0.000498,120]
[399024955,1766075091123,-2535.66560704,0.000498,120]
[399024956,1766075091195,-152.0,0.000498,120]
[399024957,1766075091266,-12149.6615221,0.00049876,31]
[399024958,1766075091336,-402.65859032,0.00049877,30]
[399024959,1766075091409,-440.0,0.00049885,120]
[399024960,1766075091485,-168.0,0.000499,120]
[399024961,1766075091558,-290.43812035,0.00049999,31]
[399024962,1766075091635,-465.0,0.00049999,120]
[399024963,1766075091711,-500.0,0.00049999,120]
[399024964,1766075091783,-247.33648282,0.00049999,31]
[399024965,1766075091856,-419.26372816,0.00049999,120]
[399024966,1766075091932,-195.55022215,0.00049999,120]
[399024967,1766075092011,-456.28385167,0.00049999,120]
[399024968,1766075092093,-50000.0,0.0005,50]
[399024969,1766075092171,-150.0,0.0005,40]
[399024970,1766075092248,-500.0,0.0005,120]
[399024971,1766075092324,-172.74203493,0.0005,120]
[399024972,1766075092400,-828.05486908,0.0005,120]
[399024973,1766075092477,-1862.33715042,0.0005,120]
[399024974,1766075092552,-245.20699893,0.0005,120]
[399024975,1766075092623,-153.43896257,0.0005,120]
[399024976,1766075092694,-1683.98531597,0.0005,120]
[399024977,1766075092763,-1367.97169746,0.0005,120]
[399024978,1766075092835,-1087.03086571,0.0005,120]
[399024979,1766075092907,-225.53627272,0.0005,120]
[399024980,1766075092977,-165.44231005,0.0005,120]
[399024981,1766075093052,-500.0,0.0005,30]
[399024982,1766075093126,-874.22405178,0.0005,120]
[399024983,1766075093202,-778.07754985,0.0005,120]
[399024984,1766075093278,-200.0,0.0005,120]
[399024985,1766075093353,-246.30567138,0.0005,30]
[399024986,1766075093434,-150.0,0.0005,120]
[399024987,1766075093510,-1016.0,0.0005,120]
[399024988,1766075093586,-1000.0,0.0005,120]
[399024989,1766075093661,-3037.552378,0.0005,120]
[399024990,1766075093740,-300.0,0.0005,120]
[399024991,1766075093816,-200.0,0.0005,120]
[399024992,1766075093889,-2061.0,0.0005,120]
[399024993,1766075093961,-416.05887621,0.0005,120]
[399024994,1766075094038,-1141.86902054,0.0005,120]
[399024995,1766075094115,-10090.0,0.0005,120]
[399024996,1766075094193,-50000.0,0.0005,60]
[399024997,1766075094276,-2550.0,0.0005,120]
[399024998,1766075094356,-41348.75029953,0.0005,120]
[399024999,1766075094683,-150.01729036,0.0005,120]
[399025000,1766075094760,-150.0,0.0005,90]
[399025001,1766075094834,-11031.51657068,0.0005,120]
[399025002,1766075094909,-560143.87392695,0.0005,120]
[399025003,1766075094986,-899.042751,0.0005,120]
[399025004,1766075095066,-6140.75741387,0.0005,120]
[399025005,1766075095144,-1127.06856447,0.0005,120]
[399025006,1766075095221,-532.256355,0.0005,120]
[399025007,1766075095301,-51055.69017547,0.0005,120]
[399025008,1766075095379,-1400.0,0.0005,120]
[399025009,1766075095466,-310.06255796,0.0005,60]
[399025010,1766075095553,-390.77,0.0005,120]
[399025011,1766075095636,-1172.93,0.0005,120]
[399025012,1766075095722,-500.0,0.0005,120]
[399025013,1766075095804,-1000.0,0.0005,120]
[399025014,1766075095888,-300.0,0.0005,120]
[399025015,1766075095965,-300.0,0.0005,120]
[399025016,1766075096048,-1400.0,0.0005,120]
[399025017,1766075096132,-500.0,0.00050055,60]
[399025018,1766075096214,-167.73762995,0.00050099,120]
[399025019,1766075096294,-452.98694093,0.00050099,120]
[399025020,1766075096378,-469.25676705,0.00050099,120]
[399025021,1766075096462,-152.0,0.000503,120]
[399025022,1766075096549,-500.0,0.00050329,60]
[399025023,1766075096634,-168.0,0.000504,120]
[399025024,1766075096715,-763.05356824,0.000505,120]
[399025025,1766075096798,-1920.24,0.00050566,120]
[399025026,1766075096881,-500.0,0.00050603,60]
[399025027,1766075096959,-286.49311373,0.000508,120]
[399025028,1766075097039,-152.0,0.000508,120]
[399025029,1766075097121,-15904.0,0.0005083,120]
[399025030,1766075097200,-849.56,0.00050877,60]
[399025031,1766075097281,-168.0,0.000509,120]
[399025032,1766075097361,-1500.0,0.00051,120]
[399025033,1766075097441,-65129.85342116,0.00051,120]
[399025034,1766075097522,-150.0,0.00051,40]
[399025035,1766075097597,-150.0,0.00051,120]
[399025036,1766075097672,-300.0,0.00051,120]
[399025037,1766075097754,-2000.0,0.00051,33]
[399025038,1766075097831,-286.71118905,0.00051,120]
[399025039,1766075097904,-7372.0,0.00051,120]
[399025040,1766075097977,-1074.24335868,0.00051,120]
[399025041,1766075098062,-500.0,0.00051,120]
[399025042,1766075098145,-80000.0,0.00051,120]
[399025043,1766075098225,-152.0,0.000513,120]
[399025044,1766075098302,-168.0,0.000514,120]
[399025045,1766075098384,-1920.24,0.00051662,120]
[399025046,1766075098463,-2410.82982107,0.000517,120]
[399025047,1766075098539,-228.96869022,0.000517,120]
[399025048,1766075098612,-243.98911577,0.000517,120]
[399025049,1766075098686,-15904.0,0.0005183,120]
[399025050,1766075098758,-168.0,0.000519,120]
[399025051,1766075098831,-152.0,0.000519,120]
[399025052,1766075098903,-1602.0,0.0005198,110]
[399025053,1766075098980,-865.30655112,0.00052,120]
[399025054,1766075099059,-500.0,0.00052,120]
[399025055,1766075099135,-200.0,0.00052,40]
[399025056,1766075099213,-200.17291968,0.00052,120]
[399025057,1766075099294,-1585.74691308,0.00052,120]
[399025058,1766075099369,-150.0,0.00052,120]
[399025059,1766075099445,-300.0,0.00052,120]
[399025060,1766075099522,-200.0,0.00052,120]
[399025061,1766075099596,-10000.0,0.00052,120]
[399025062,1766075099670,-10000.0,0.00052,120]
[399025063,1766075099741,-10000.0,0.00052055,120]
[399025064,1766075099812,-168.0,0.000524,120]
[399025065,1766075099885,-152.0,0.000524,120]
[399025066,1766075099956,-1233.47450966,0.0005245,120]
[399025067,1766075100032,-139219.06019242,0.00052658,120]
[399025068,1766075100113,-1920.24,0.00052758,120]
[399025069,1766075100196,-547.97700935,0.000528,120]
[399025070,1766075100286,-15904.0,0.0005283,120]
[399025071,1766075100374,-168.0,0.000529,120]
[399025072,1766075100466,-152.0,0.000529,120]
[399025073,1766075100551,-1000.0,0.00052999,120]
[399025074,1766075100631,-192.61983873,0.00053,120]
[399025075,1766075100707,-150.0,0.00053,120]
[399025076,1766075100783,-300.0,0.00053,120]
[399025077,1766075100861,-7372.0,0.00053,120]
[399025078,1766075100943,-500.0,0.00053,120]
[399025079,1766075101023,-1797.0,0.00053,120]
[399025080,1766075101102,-168.0,0.000534,120]
[399025081,1766075101179,-152.0,0.000534,120]
[399025082,1766075101264,-10000.0,0.00053425,120]
[399025083,1766075101349,-10000.0,0.00053425,120]
[399025084,1766075101427,-10000.0,0.00053425,120]
[399025085,1766075101502,-10000.0,0.00053425,120]
[399025086,1766075101577,-10000.0,0.00053425,120]
[399025087,1766075101651,-10000.0,0.00053425,120]
[399025088,1766075101727,-320.98300576,0.000535,120]
[399025089,1766075101802,-663.869,0.0005368,100]
[399025090,1766075101876,-164.44396909,0.000538,120]
[399025091,1766075101954,-15904.0,0.0005383,120]
[399025092,1766075102034,-1920.24,0.00053854,120]
[399025093,1766075102514,-12426.7,0.00053886,117]
[399025094,1766075102595,-169999.20795048,0.00053888,120]
[399025095,1766075108475,15528.32765618,0.00017,2]
[399025096,1766075162959,-5000.0,0.00040999,120]
[399025097,1766075163051,-1443.0,0.00041095,120]
[399025098,1766075163133,-1443.0,0.00041095,120]
[399025099,1766075163215,-500.0,0.00041095,120]
[399025100,1766075163296,-500.0,0.00041095,120]
[399025101,1766075163379,-1125.76,0.00041095,120]
[399025102,1766075163463,-1125.76,0.00041095,120]
[399025103,1766075163550,-500.0,0.00041095,120]
[399025104,1766075163630,-500.0,0.00041095,120]
[399025105,1766075163712,-835.86,0.00041095,120]
[399025106,1766075163792,-1111.84,0.00041095,120]
[399025107,1766075163874,-500.0,0.00041097,120]
[399025108,1766075163956,-1125.76,0.00041097,120]
[399025109,1766075164037,-1443.0,0.00041098,120]
[399025110,1766075164122,-150.0,0.00041484,30]
[399025111,1766075164204,-500.0,0.00041585,120]
[399025112,1766075164287,-500.0,0.00041585,120]
[399025113,1766075164367,-500.0,0.00041585,120]
[399025114,1766075164450,-500.0,0.00041585,120]
[399025115,1766075164530,-500.0,0.00041585,120]
[399025116,1766075164610,-500.0,0.00041585,120]
[399025117,1766075164689,-500.0,0.00041585,120]
[399025118,1766075164768,-500.0,0.00041585,120]
[399025119,1766075164847,-500.0,0.00041585,120]
[399025120,1766075164928,-500.0,0.00041585,120]
[399025121,1766075165008,-500.0,0.00041585,120]
[399025122,1766075165092,-500.0,0.00041585,120]
[399025123,1766075165189,-500.0,0.00041585,120]
[399025124,1766075165279,-500.0,0.00041585,120]
[399025125,1766075165363,-500.0,0.00041585,120]
[399025126,1766075165449,-500.0,0.00041585,120]
[399025127,1766075165532,-500.0,0.00041585,120]
[399025128,1766075165614,-500.0,0.00041585,120]
[399025129,1766075165695,-500.0,0.00041585,120]
[399025130,1766075165777,-500.0,0.00041585,120]
[399025131,1766075165857,-500.0,0.00041585,120]
[399025132,1766075165938,-500.0,0.00041585,120]
[399025133,1766075166020,-500.0,0.00041585,120]
[399025134,1766075166104,-500.0,0.00041585,120]
[399025135,1766075166200,-500.0,0.00041585,120]
[399025136,1766075166295,-500.0,0.00041585,120]
[399025137,1766075166379,-500.0,0.00041585,120]
[399025138,1766075166460,-500.0,0.00041585,120]
[399025139,1766075166547,-500.0,0.00041585,120]
[399025140,1766075166632,-500.0,0.00041585,120]
[399025141,1766075166711,-500.0,0.00041585,120]
[399025142,1766075166791,-500.0,0.00041585,120]
[399025143,1766075166877,-500.0,0.00041585,120]
[399025144,1766075166958,-500.0,0.00041585,120]
[399025145,1766075167044,-500.0,0.00041585,120]
[399025146,1766075167136,-500.0,0.00041585,120]
[399025147,1766075167221,-500.0,0.00041585,120]
[399025148,1766075167310,-500.0,0.00041585,120]
[399025149,1766075167392,-500.0,0.00041585,120]
[399025150,1766075167478,-500.0,0.00041585,120]
[399025151,1766075167564,-500.0,0.00041585,120]
[399025152,1766075167652,-500.0,0.00041585,120]
[399025153,1766075167740,-500.0,0.00041585,120]
[399025154,1766075167826,-500.0,0.00041585,120]
[399025155,1766075167912,-500.0,0.00041585,120]
[399025156,1766075167998,-500.0,0.00041585,120]
[399025157,1766075168086,-500.0,0.00041585,120]
[399025158,1766075168181,-500.0,0.00041585,120]
[399025159,1766075168268,-500.0,0.00041585,120]
[399025160,1766075168354,-500.0,0.00041585,120]
[399025161,1766075168435,-500.0,0.00041585,120]
[399025162,1766075168522,-500.0,0.00041585,120]
[399025163,1766075168618,-500.0,0.00041585,120]
[399025164,1766075168705,-500.0,0.00041585,120]
[399025165,1766075168792,-500.0,0.00041585,120]
[399025166,1766075168874,-500.0,0.00041585,120]
[399025167,1766075168958,-561.0,0.00041585,120]
[399025168,1766075169045,-1443.0,0.00041799,120]
[399025169,1766075169133,-500.0,0.00041799,120]
[399025170,1766075169226,-500.0,0.00041799,120]
[399025171,1766075169311,-500.0,0.00041799,120]
[399025172,1766075169393,-500.0,0.00041799,120]
[399025173,1766075169478,-1125.76,0.00041799,120]
[399025174,1766075169564,-1125.76,0.00041799,120]
[399025175,1766075169648,-1125.76,0.00041799,120]
[399025176,1766075169731,-1125.76,0.00041799,120]
[399025177,1766075169812,-1125.76,0.00041799,120]
[399025178,1766075169894,-150.0,0.00042548,30]
[399025179,1766075169977,-1125.76,0.00042565,120]
[399025180,1766075170060,-1125.76,0.00042565,120]
[399025181,1766075170146,-1125.76,0.00042565,120]
[399025182,1766075170230,-1125.76,0.00042565,120]
[399025183,1766075170313,-1125.76,0.00042565,120]
[399025184,1766075170395,-1125.76,0.00042565,120]
[399025185,1766075170485,-1125.76,0.00042565,120]
[399025186,1766075170567,-1125.76,0.00042565,120]
[399025187,1766075170663,-1125.76,0.00042565,120]
[399025188,1766075170761,-1125.76,0.00042565,120]
[399025189,1766075170846,-1125.76,0.00042565,120]
[399025190,1766075170927,-1125.76,0.00042565,120]
[399025191,1766075171304,-1125.76,0.00042565,120]
[399025192,1766075171399,-1125.76,0.00042565,120]
[399025193,1766075171483,-1125.76,0.00042565,120]
[399025194,1766075171568,-1125.89504357,0.00042565,120]
[399025195,1766075173383,-2552.57,0.00045,30]
[399025196,1766075173469,-1116.44,0.00045,30]
[399025197,1766075173554,-500.0,0.00045,120]
[399025198,1766075173638,-150.0,0.00045,120]
[399025199,1766075173719,-2552.57,0.0004725,30]
[399025200,1766075173798,-1116.44,0.0004725,30]
[399025201,1766075173876,-2552.57,0.00049613,30]
[399025202,1766075173954,-1116.44,0.00049613,30]
[399025203,1766075174034,-150.0,0.0005,120]
[399025204,1766075174635,-2552.57,0.00052093,30]
[399025205,1766075174725,-1116.44,0.00052093,30]
[399025206,1766075174812,-267.73329067,0.00053638,120]
[399025207,1766075174891,-153.25624077,0.00053638,120]
[399025208,1766075174970,-3345.70811943,0.00053807,120]
[399025209,1766075175051,-246196.45424889,0.00053888,120]
[399025210,1766075175132,-168.0,0.000539,120]
[399025211,1766075175212,-7906.1867786,0.000539,120]
[399025212,1766075175292,-2101.51177097,0.000539,30]
[399025213,1766075175379,-314957.98143046,0.0005392,120]
[399025214,1766075175467,-3153045.83548293,0.0005392,120]
[399025215,1766075175554,-3952.725,0.0005398,120]
[399025216,1766075175637,-1000.0,0.00053999,120]
[399025217,1766075175722,-260.54909071,0.00054,120]
[399025218,1766075175806,-959.44201594,0.00054,120]
[399025219,1766075175889,-150.0,0.00054,120]
[399025220,1766075175971,-300.0,0.00054,120]
[399025221,1766075176054,-635.0,0.00054,120]
[399025222,1766075176138,-200.0,0.00054,120]
[399025223,1766075176220,-7347.67111151,0.00054,120]
[399025224,1766075176301,-1228.22105505,0.00054,120]
[399025225,1766075176381,-123020.73539055,0.00054,30]
[399025226,1766075176460,-44227.87392995,0.00054,30]
[399025231,1766075318185,10000.0,0.00016,4]
[399025232,1766075318208,10000.0,0.00016,4]
[399025233,1766075318231,10000.0,0.00016,4]
[399025234,1766075318740,10000.0,0.00016,4]
[399025235,1766075318914,10000.0,0.00016,4]
[399025236,1766075318938,10000.0,0.00016,4]
[399025237,1766075318962,10000.0,0.00016,4]
[399025238,1766075318984,10000.0,0.00016,4]
[399025239,1766075319007,10000.0,0.00016,4]
[399025240,1766075319031,10000.0,0.00016,4]
[399025241,1766075319062,10000.0,0.00016,4]
[399025242,1766075319087,10000.0,0.00016,4]
[399025243,1766075319112,10000.0,0.00016,4]
[399025244,1766075319138,10000.0,0.00016,4]
[399025245,1766075319163,10000.0,0.00016,4]
[399025246,1766075319188,10000.0,0.00016,4]
[399025247,1766075319211,10000.0,0.00016,4]
[399025248,1766075319235,10000.0,0.00016,4]
[399025249,1766075319258,4312.0,0.00016,4]
[399025250,1766075319287,50000.0,0.00016,4]
[399025251,1766075319313,43963.68028126,0.00016,4]
[399025252,1766075336559,-5000.0,0.000162,5]
[399025253,1766075336600,-0.01,0.00016599,2]
[399025254,1766075339437,-194.99,0.00016599,2]
[399025255,1766075339471,-342.59695128,0.00016898,2]
[399025256,1766075339511,-300.0,0.00016998,2]
[399025257,1766075339544,-757.0,0.00016998,2]
[399025258,1766075346260,-4077.27897361,0.0003,30]
[399025259,1766075346354,-409.44004701,0.00035,30]
[399025260,1766075346436,-9060.81027902,0.00035,30]
[399025261,1766075346522,-5000.0,0.00040999,120]
[399025262,1766075346607,-500.0,0.00041095,120]
[399025263,1766075346690,-500.0,0.00041095,120]
[399025264,1766075346773,-1202.5,0.00041095,120]
[399025265,1766075346854,-1202.5,0.00041095,120]
[399025266,1766075346936,-500.0,0.00041095,120]
[399025267,1766075347018,-500.0,0.00041095,120]
[399025268,1766075347101,-500.0,0.00041097,120]
[399025269,1766075347192,-500.0,0.00041568,120]
[399025270,1766075347279,-500.0,0.00041568,120]
[399025271,1766075347365,-500.0,0.00041568,120]
[399025272,1766075347449,-500.0,0.00041568,120]
[399025273,1766075347533,-500.0,0.00041568,120]
[399025274,1766075347620,-500.0,0.00041568,120]
[399025275,1766075347706,-500.0,0.00041568,120]
[399025276,1766075347788,-500.0,0.00041568,120]
[399025277,1766075348277,-500.0,0.00041568,120]
[399025278,1766075348370,-500.0,0.00041568,120]
[399025279,1766075348452,-500.0,0.00041568,120]
[399025280,1766075348536,-500.0,0.00041568,120]
[399025281,1766075348618,-500.0,0.00041568,120]
[399025282,1766075348700,-500.0,0.00041568,120]
[399025283,1766075348779,-500.0,0.00041568,120]
[399025284,1766075348859,-500.0,0.00041568,120]
[399025285,1766075348938,-500.0,0.00041568,120]
[399025286,1766075349027,-500.0,0.00041568,120]
[399025287,1766075349114,-500.0,0.00041568,120]
[399025288,1766075349202,-500.0,0.00041568,120]
[399025289,1766075349289,-500.0,0.00041568,120]
[399025290,1766075349379,-500.0,0.00041568,120]
[399025291,1766075349462,-500.0,0.00041568,120]